[Event "LJ Slovak Open 2022"]
[Site "Liptovsky Jan"]
[Date "2022.06.25"]
[Round "5.14"]
[White "Zetocha, Adrian"]
[Black "Haasova, Timea"]
[Result "1-0"]
[ECO "B22"]
[WhiteElo "2331"]
[BlackElo "1811"]
[Annotator "RC"]
[PlyCount "65"]
[EventDate "2022.06.23"]
[EventType "swiss"]
[EventCountry "SVK"]
[SourceTitle "playchess.com"]
[Source "ChessBase"]
[SourceQuality "1"]
[TimeControl "3600+30"]

1. e4 {[%emt 0:00:11]} c5 {[%emt 0:00:06]} 2. Nf3 {[%emt 0:00:57]} e6 {[%emt 0:00:10]} 3. c3 {[%emt 0:00:04]} Nf6 {[%emt 0:00:42]} 4. e5 {[%emt 0:00:21]} Nd5 {[%emt 0:00:11]} 5. d4 {[%emt 0:00:19]} cxd4 {[%emt 0:00:19]} 6. cxd4 {[%emt 0:00:32]} Nc6 {[%emt 0:00:13]} 7. Bc4 {[%emt 0:01:29]} Nb6 {[%emt 0:00:49]} 8. Bd3 {[%emt 0:02:09]} d6 {[%emt 0:03:28]} 9. O-O {[%emt 0:01:10]} Be7 {[%emt 0:01:11]} 10. Nc3 {[%emt 0:05:42]} O-O {[%emt 0:01:02]} 11. Qe2 {[%emt 0:04:23]} f5 {[%emt 0:15:13]} 12. exf6 {[%emt 0:08:36]} Bxf6 {[%emt 0:01:06]} 13. Be3 {[%emt 0:02:58]} Bd7 {[%emt 0:07:30]} 14. Qc2 {[%emt 0:07:15]} h6 {[%emt 0:01:23]} 15. Qb3 {[%emt 0:00:24]} d5 {[%emt 0:04:15]} 16. Bb1 {[%emt 0:00:40]} Qe7 {[%emt 0:02:07]} 17. Re1 {[%emt 0:02:36]} Qf7 {[%emt 0:02:36]} 18. Nb5 {[%emt 0:15:01]} Na5 {[%emt 0:01:42]} 19. Qd3 {[%emt 0:01:01]} g5 {[%emt 0:00:33]} 20. Nd6 {[%emt 0:00:17]} Qg7 {[%emt 0:01:30]} 21. Bd2 {[%emt 0:03:22]} Nac4 {[%emt 0:03:58]} 22. Nxc4 {[%emt 0:00:06]} Nxc4 {[%emt 0:00:18]} 23. Bb4 {[%emt 0:00:35]} Rfe8 {[%emt 0:01:01]} 24. b3 {[%emt 0:00:08]} Nb6 {[%emt 0:05:54]} 25. a4 {[%emt 0:00:12]} Bc6 {[%emt 0:02:33]} 26. Ra2 {[%emt 0:00:42]} a5 {[%emt 0:01:05]} 27. Bd6 {[%emt 0:00:17]} Nc8 {[%emt 0:01:24]} 28. Bg3 {[%emt 0:02:17]} h5 {[%emt 0:00:58]} 29. Be5 {[%emt 0:02:01]} Bxe5 {[%emt 0:00:36]} 30. Rxe5 {[%emt 0:00:06]} Kh8 {[%emt 0:00:51]} 31. Rxg5 {[%emt 0:00:12]} Qh6 {[%emt 0:00:57]} 32. Qe3 {[%emt 0:00:58]} Qf6 {[%emt 0:01:16]} 33. Rg6 {[%emt 0:00:51]} 1-0

[Event "LJ Slovak Open 2022"]
[Site "Liptovsky Jan"]
[Date "2022.06.25"]
[Round "5.15"]
[White "Volek, Jan"]
[Black "Macka, Oto"]
[Result "0-1"]
[ECO "B30"]
[WhiteElo "1687"]
[BlackElo "2026"]
[Annotator "NA RC"]
[PlyCount "44"]
[EventDate "2022.06.23"]
[EventType "swiss"]
[EventCountry "SVK"]
[SourceTitle "playchess.com"]
[Source "ChessBase"]
[SourceQuality "1"]
[TimeControl "3600+30"]

1. e4 {[%emt 0:00:05]} c5 {[%emt 0:00:00]} 2. Nf3 {[%emt 0:00:01]} Nc6 {[%emt 0:00:00]} 3. Nc3 {[%emt 0:00:46]} e5 {[%emt 0:00:11]} 4. Be2 {[%emt 0:00:31]} Be7 {[%emt 0:00:03]} 5. O-O {[%emt 0:00:27]} Nf6 {[%emt 0:00:04]} 6. d3 {[%emt 0:00:28]} O-O {[%emt 0:00:04]} 7. Nd5 {[%emt 0:00:28]} h6 {[%emt 0:00:18]} 8. Nxe7+ {[%emt 0:01:58]} Qxe7 {[%emt 0:00:00]} 9. c3 {[%emt 0:00:43]} d5 {[%emt 0:00:04]} 10. exd5 {[%emt 0:05:50]} Nxd5 {[%emt 0:00:30]} 11. h3 {[%emt 0:00:30]} Bf5 {[%emt 0:00:30]} 12. Nh2 {[%emt 0:00:30]} Rad8 {[%emt 0:02:01]} 13. Bg4 {[%emt 0:01:04]} Bh7 {[%emt 0:00:43]} 14. Qe2 {[%emt 0:02:57]} Rd6 {[%emt 0:05:17]} 15. Re1 {[%emt 0:02:47]} Nf6 {[%emt 0:04:40]} 16. d4 {[%emt 0:06:04]} cxd4 {[%emt 0:02:11]} 17. cxd4 {[%emt 0:01:11]} Nxd4 {[%emt 0:03:08]} 18. Qc4 {[%emt 0:08:00]} Nc2 {[%emt 0:02:07]} 19. Be3 {[%emt 0:01:27]} Nxa1 {[%emt 0:03:07]} 20. Rxa1 {[%emt 0:00:59]} Nxg4 {[%emt 0:02:58]} 21. Qxg4 {[%emt 0:01:08]} f5 {[%emt 0:02:06]} 22. Qb4 {[%emt 0:01:22]} Rd1+ {[%emt 0:00:20]} 0-1

[Event "LJ Slovak Open 2022"]
[Site "Liptovsky Jan"]
[Date "2022.06.25"]
[Round "5.16"]
[White "Smetana, Peter"]
[Black "Stric, Dusan"]
[Result "1-0"]
[ECO "B34"]
[WhiteElo "1740"]
[BlackElo "2021"]
[Annotator "NA RC"]
[PlyCount "129"]
[EventDate "2022.06.23"]
[EventType "swiss"]
[EventCountry "SVK"]
[SourceTitle "playchess.com"]
[Source "ChessBase"]
[SourceQuality "1"]
[TimeControl "3600+30"]

1. e4 {[%emt 0:00:19]} c5 {[%emt 0:00:04]} 2. Nf3 {[%emt 0:00:38]} Nc6 {[%emt 0:00:09]} 3. Nc3 {[%emt 0:00:43]} g6 {[%emt 0:00:25]} 4. d4 {[%emt 0:00:54]} cxd4 {[%emt 0:01:16]} 5. Nxd4 {[%emt 0:00:39]} Bg7 {[%emt 0:00:02]} 6. Nxc6 {[%emt 0:00:38]} bxc6 {[%emt 0:00:16]} 7. Bc4 {[%emt 0:00:56]} e6 {[%emt 0:01:47]} 8. O-O {[%emt 0:01:02]} d5 {[%emt 0:00:05]} 9. Bd3 {[%emt 0:06:33]} Ne7 {[%emt 0:01:32]} 10. Qe2 {[%emt 0:01:28]} O-O {[%emt 0:00:13]} 11. Na4 {[%emt 0:01:19]} Qd6 {[%emt 0:07:13]} 12. Bd2 {[%emt 0:01:40]} c5 {[%emt 0:02:58]} 13. c4 {[%emt 0:01:49]} d4 {[%emt 0:07:53]} 14. b3 {[%emt 0:02:39]} e5 {[%emt 0:03:14]} 15. Rad1 {[%emt 0:01:16]} Bd7 {[%emt 0:04:45]} 16. Nb2 {[%emt 0:04:30]} Rae8 {[%emt 0:00:28]} 17. h3 {[%emt 0:06:46]} f5 {[%emt 0:00:20]} 18. Rfe1 {[%emt 0:01:16]} f4 {[%emt 0:04:18]} 19. Qf3 {[%emt 0:01:31]} g5 {[%emt 0:03:16]} 20. Be2 {[%emt 0:01:18]} Rf6 {[%emt 0:00:45]} 21. Qh5 {[%emt 0:01:35]} Ref8 {[%emt 0:08:49]} 22. Qxg5 {[%emt 0:02:03]} Bxh3 {[%emt 0:01:25]} 23. Bh5 {[%emt 0:01:44]} Bd7 {[%emt 0:01:42]} 24. Nd3 {[%emt 0:01:01]} Rh6 {[%emt 0:01:36]} 25. b4 {[%emt 0:01:33]} Kh8 {[%emt 0:01:33]} 26. bxc5 {[%emt 0:00:47]} Qe6 {[%emt 0:01:06]} 27. Nb4 {[%emt 0:03:21]} Ng8 {[%emt 0:04:32]} 28. Nd5 {[%emt 0:06:25]} Rff6 {[%emt 0:03:59]} 29. Ba5 {[%emt 0:01:47]} f3 {[%emt 0:03:41]} 30. Rd3 {[%emt 0:08:08]} Rfg6 {[%emt 0:03:58]} 31. Bxg6 {[%emt 0:00:55]} Rxg6 {[%emt 0:00:02]} 32. Qh4 {[%emt 0:01:49]} Rxg2+ {[%emt 0:00:52]} 33. Kf1 {[%emt 0:00:15]} Rg4 {[%emt 0:01:29]} 34. Qh1 {[%emt 0:01:21]} Qg6 {[%emt 0:00:58]} 35. Rxf3 {[%emt 0:00:34]} Rxe4 {[%emt 0:00:21]} 36. Rg3 {[%emt 0:01:10]} Rg4 {[%emt 0:00:06]} 37. Qg2 {[%emt 0:02:18]} Nh6 {[%emt 0:00:27]} 38. Bd2 {[%emt 0:01:36]} e4 {[%emt 0:00:39]} 39. Rxg4 {[%emt 0:00:51]} Bxg4 {[%emt 0:00:06]} 40. Nf4 {[%emt 0:01:30]} Qf5 {[%emt 0:00:32]} 41. Qxe4 {[%emt 0:01:04]} Qxc5 {[%emt 0:00:40]} 42. Qd5 {[%emt 0:00:41]} Qc8 {[%emt 0:00:52]} 43. f3 {[%emt 0:00:34]} Bh3+ {[%emt 0:00:20]} 44. Nxh3 {[%emt 0:00:09]} Qxh3+ {[%emt 0:00:02]} 45. Ke2 {[%emt 0:00:09]} Ng8 {[%emt 0:00:39]} 46. Kd1 {[%emt 0:00:38]} h6 {[%emt 0:00:08]} 47. Bf4 {[%emt 0:00:28]} Nf6 {[%emt 0:00:15]} 48. Qa8+ {[%emt 0:00:46]} Kh7 {[%emt 0:00:02]} 49. Be5 {[%emt 0:00:11]} d3 {[%emt 0:00:46]} 50. Bxf6 {[%emt 0:00:21]} Bxf6 {[%emt 0:00:19]} 51. Qe4+ {[%emt 0:00:26]} Kg7 {[%emt 0:00:03]} 52. Qg4+ {[%emt 0:00:31]} Qxg4 {[%emt 0:00:07]} 53. fxg4 {[%emt 0:00:05]} Bg5 {[%emt 0:02:13]} 54. c5 {[%emt 0:00:27]} d2 {[%emt 0:01:38]} 55. Re6 {[%emt 0:00:30]} Kf7 {[%emt 0:00:16]} 56. Ra6 {[%emt 0:00:12]} Be3 {[%emt 0:00:17]} 57. Rxa7+ {[%emt 0:00:44]} Kg6 {[%emt 0:00:03]} 58. Ra4 {[%emt 0:00:11]} Bxc5 {[%emt 0:00:10]} 59. Kxd2 {[%emt 0:00:15]} Be7 {[%emt 0:00:28]} 60. Ke3 {[%emt 0:00:12]} h5 {[%emt 0:00:42]} 61. gxh5+ {[%emt 0:00:29]} Kxh5 {[%emt 0:00:03]} 62. Re4 {[%emt 0:00:17]} Ba3 {[%emt 0:00:10]} 63. Kd3 {[%emt 0:00:04]} Kg5 {[%emt 0:00:04]} 64. Kc3 {[%emt 0:00:09]} Kf5 {[%emt 0:00:04]} 65. Re8 {[%emt 0:00:06]} 1-0

[Event "LJ Slovak Open 2022"]
[Site "Liptovsky Jan"]
[Date "2022.06.25"]
[Round "5.17"]
[White "Giertli, Vladimir"]
[Black "Zeman, Jan"]
[Result "1-0"]
[ECO "A06"]
[WhiteElo "1988"]
[BlackElo "1726"]
[Annotator "NA RC"]
[PlyCount "61"]
[EventDate "2022.06.23"]
[EventType "swiss"]
[EventCountry "SVK"]
[SourceTitle "playchess.com"]
[Source "ChessBase"]
[SourceQuality "1"]
[TimeControl "3600+30"]

1. b3 {[%emt 0:00:19]} d5 {[%emt 0:00:26]} 2. Bb2 {[%emt 0:00:12]} c5 {[%emt 0:00:38]} 3. e3 {[%emt 0:00:12]} a6 {[%emt 0:00:51]} 4. Nf3 {[%emt 0:00:36]} Nc6 {[%emt 0:00:17]} 5. d4 {[%emt 0:00:25]} Bg4 {[%emt 0:00:31]} 6. dxc5 {[%emt 0:02:13]} e5 {[%emt 0:00:44]} 7. Be2 {[%emt 0:00:16]} Bxf3 {[%emt 0:01:12]} 8. Bxf3 {[%emt 0:00:15]} Nf6 {[%emt 0:00:51]} 9. g4 {[%emt 0:02:22]} Bxc5 {[%emt 0:01:43]} 10. g5 {[%emt 0:00:49]} Ne4 {[%emt 0:00:24]} 11. h4 {[%emt 0:01:49]} f5 {[%emt 0:00:36]} 12. gxf6 {[%emt 0:00:27]} Nxf6 {[%emt 0:00:56]} 13. Nd2 {[%emt 0:03:12]} e4 {[%emt 0:01:56]} 14. Bh5+ {[%emt 0:01:12]} g6 {[%emt 0:02:14]} 15. Be2 {[%emt 0:00:02]} Rg8 {[%emt 0:01:26]} 16. h5 {[%emt 0:01:30]} d4 {[%emt 0:05:23]} 17. hxg6 {[%emt 0:00:58]} hxg6 {[%emt 0:00:20]} 18. Bc4 {[%emt 0:01:39]} Kd7 {[%emt 0:03:13]} 19. Bxg8 {[%emt 0:02:09]} Qxg8 {[%emt 0:00:03]} 20. exd4 {[%emt 0:01:22]} Bd6 {[%emt 0:02:03]} 21. Nc4 {[%emt 0:00:40]} Re8 {[%emt 0:02:51]} 22. Qe2 {[%emt 0:02:01]} Bf4 {[%emt 0:01:07]} 23. Ne3 {[%emt 0:00:25]} g5 {[%emt 0:01:39]} 24. O-O-O {[%emt 0:00:13]} Nb4 {[%emt 0:01:42]} 25. Kb1 {[%emt 0:00:09]} Rc8 {[%emt 0:01:30]} 26. Nc4 {[%emt 0:00:34]} Kc7 {[%emt 0:01:50]} 27. Rh6 {[%emt 0:00:49]} Nbd5 {[%emt 0:01:17]} 28. Ne5 {[%emt 0:00:45]} Kb8 {[%emt 0:00:33]} 29. c4 {[%emt 0:00:18]} Qg7 {[%emt 0:01:17]} 30. Rdh1 {[%emt 0:01:01]} Nb4 {[%emt 0:00:31]} 31. Rxf6 {[%emt 0:00:10]} 1-0

[Event "LJ Slovak Open 2022"]
[Site "Liptovsky Jan"]
[Date "2022.06.25"]
[Round "5.18"]
[White "Straka, Simon"]
[Black "Bakalar, Jan"]
[Result "0-1"]
[ECO "A44"]
[WhiteElo "1523"]
[BlackElo "1916"]
[Annotator "NA RC"]
[PlyCount "98"]
[EventDate "2022.06.23"]
[EventType "swiss"]
[EventCountry "SVK"]
[SourceTitle "playchess.com"]
[Source "ChessBase"]
[SourceQuality "1"]
[TimeControl "3600+30"]

1. d4 {[%emt 0:00:04]} c5 {[%emt 0:04:43]} 2. d5 {[%emt 0:00:06]} e5 {[%emt 0:00:06]} 3. c4 {[%emt 0:00:35]} d6 {[%emt 0:00:07]} 4. Nc3 {[%emt 0:00:21]} Ne7 {[%emt 0:00:10]} 5. e4 {[%emt 0:01:11]} Ng6 {[%emt 0:00:12]} 6. Nge2 {[%emt 0:04:43]} Be7 {[%emt 0:00:14]} 7. Ng3 {[%emt 0:00:38]} Bg5 {[%emt 0:09:04]} 8. Nf5 {[%emt 0:02:55]} Bxc1 {[%emt 0:01:23]} 9. Rxc1 {[%emt 0:01:33]} O-O {[%emt 0:04:27]} 10. Nb5 {[%emt 0:03:48]} Bxf5 {[%emt 0:00:27]} 11. exf5 {[%emt 0:00:12]} Ne7 {[%emt 0:01:13]} 12. Bd3 {[%emt 0:02:13]} f6 {[%emt 0:00:16]} 13. h4 {[%emt 0:02:19]} a6 {[%emt 0:01:44]} 14. Nc3 {[%emt 0:00:08]} Kh8 {[%emt 0:03:42]} 15. g4 {[%emt 0:11:49]} Ng8 {[%emt 0:03:18]} 16. Ne4 {[%emt 0:05:22]} b5 {[%emt 0:02:41]} 17. Qd2 {[%emt 0:04:12]} bxc4 {[%emt 0:01:59]} 18. Bxc4 {[%emt 0:01:00]} a5 {[%emt 0:00:40]} 19. g5 {[%emt 0:02:26]} Qe7 {[%emt 0:01:31]} 20. Rc3 {[%emt 0:05:40]} Nd7 {[%emt 0:00:19]} 21. Rg3 {[%emt 0:00:47]} Nb6 {[%emt 0:01:17]} 22. Be2 {[%emt 0:02:35]} Rfd8 {[%emt 0:02:03]} 23. h5 {[%emt 0:00:44]} h6 {[%emt 0:01:40]} 24. gxh6 {[%emt 0:03:30]} Nxh6 {[%emt 0:01:09]} 25. Rg6 {[%emt 0:01:17]} Rf8 {[%emt 0:03:50]} 26. Rhg1 {[%emt 0:03:30]} Nxf5 {[%emt 0:06:32]} 27. Bg4 {[%emt 0:05:19]} Nh4 {[%emt 0:00:42]} 28. Be6 {[%emt 0:00:35]} Nf3+ {[%emt 0:01:58]} 29. Ke2 {[%emt 0:00:29]} Nxd2 {[%emt 0:00:18]} 30. Kxd2 {[%emt 0:02:42]} Nc4+ {[%emt 0:01:11]} 31. Ke1 {[%emt 0:00:50]} Qb7 {[%emt 0:01:33]} 32. h6 {[%emt 0:00:24]} Qb4+ {[%emt 0:00:35]} 33. Nc3 {[%emt 0:01:44]} Ra7 {[%emt 0:00:25]} 34. hxg7+ {[%emt 0:00:53]} Rxg7 {[%emt 0:00:03]} 35. Rxg7 {[%emt 0:00:27]} Qxb2 {[%emt 0:06:23]} 36. R7g6 {[%emt 0:00:52]} Qxc3+ {[%emt 0:00:45]} 37. Ke2 {[%emt 0:00:15]} Qc2+ {[%emt 0:01:23]} 38. Ke1 {[%emt 0:00:25]} Qb1+ {[%emt 0:03:05]} 39. Ke2 {[%emt 0:00:16]} Qxa2+ {[%emt 0:01:08]} 40. Ke1 {[%emt 0:00:26]} Qd2+ {[%emt 0:00:48]} 41. Kf1 {[%emt 0:00:07]} Qd1+ {[%emt 0:00:44]} 42. Kg2 {[%emt 0:00:10]} Qxg1+ {[%emt 0:00:19]} 43. Kxg1 {[%emt 0:00:05]} a4 {[%emt 0:00:07]} 44. Rh6+ {[%emt 0:00:33]} Kg7 {[%emt 0:00:12]} 45. Rh4 {[%emt 0:00:17]} Nb6 {[%emt 0:00:50]} 46. Kg2 {[%emt 0:00:23]} f5 {[%emt 0:01:39]} 47. Rh3 {[%emt 0:00:30]} e4 {[%emt 0:00:23]} 48. Rg3+ {[%emt 0:00:33]} Kf6 {[%emt 0:00:16]} 49. f4 {[%emt 0:00:38]} Ra8 {[%emt 0:01:30]} 0-1

[Event "LJ Slovak Open 2022"]
[Site "Liptovsky Jan"]
[Date "2022.06.25"]
[Round "5.19"]
[White "Korenova, Simona"]
[Black "Kulich, Filip"]
[Result "0-1"]
[ECO "D12"]
[WhiteElo "1895"]
[BlackElo "1682"]
[Annotator "NA RC"]
[PlyCount "96"]
[EventDate "2022.06.23"]
[EventType "swiss"]
[EventCountry "SVK"]
[SourceTitle "playchess.com"]
[Source "ChessBase"]
[SourceQuality "1"]
[TimeControl "3600+30"]

1. c4 {[%emt 0:05:17]} c6 {[%emt 0:00:39]} 2. d4 {[%emt 0:00:20]} d5 {[%emt 0:00:09]} 3. Nc3 {[%emt 0:00:10]} Nf6 {[%emt 0:00:16]} 4. e3 {[%emt 0:00:54]} Bf5 {[%emt 0:01:06]} 5. Nf3 {[%emt 0:01:08]} e6 {[%emt 0:00:29]} 6. a3 {[%emt 0:00:55]} a5 {[%emt 0:02:19]} 7. Be2 {[%emt 0:00:24]} Nbd7 {[%emt 0:01:04]} 8. O-O {[%emt 0:00:23]} Bd6 {[%emt 0:00:50]} 9. b3 {[%emt 0:03:26]} O-O {[%emt 0:01:33]} 10. Bb2 {[%emt 0:00:20]} Rc8 {[%emt 0:00:49]} 11. c5 {[%emt 0:02:08]} Bc7 {[%emt 0:00:39]} 12. b4 {[%emt 0:01:52]} e5 {[%emt 0:02:12]} 13. b5 {[%emt 0:06:23]} e4 {[%emt 0:02:08]} 14. Nd2 {[%emt 0:01:43]} Re8 {[%emt 0:04:04]} 15. Re1 {[%emt 0:13:57]} Nf8 {[%emt 0:03:09]} 16. b6 {[%emt 0:01:05]} Bb8 {[%emt 0:00:20]} 17. Nb3 {[%emt 0:00:30]} Qd7 {[%emt 0:03:11]} 18. Nxa5 {[%emt 0:01:47]} Ng6 {[%emt 0:01:29]} 19. g3 {[%emt 0:02:20]} Re7 {[%emt 0:02:40]} 20. Nb3 {[%emt 0:01:11]} Bg4 {[%emt 0:01:27]} 21. Nd2 {[%emt 0:02:53]} h5 {[%emt 0:01:02]} 22. Bxg4 {[%emt 0:03:07]} Nxg4 {[%emt 0:00:50]} 23. h3 {[%emt 0:04:04]} Nf6 {[%emt 0:02:04]} 24. Kg2 {[%emt 0:00:48]} Qf5 {[%emt 0:00:50]} 25. Rh1 {[%emt 0:01:03]} h4 {[%emt 0:01:48]} 26. g4 {[%emt 0:00:55]} Qg5 {[%emt 0:00:56]} 27. Qe2 {[%emt 0:05:04]} Re6 {[%emt 0:03:30]} 28. Nd1 {[%emt 0:00:41]} Nh5 {[%emt 0:01:15]} 29. Kf1 {[%emt 0:01:07]} Nf6 {[%emt 0:01:51]} 30. f4 {[%emt 0:05:48]} exf3 {[%emt 0:03:00]} 31. Nxf3 {[%emt 0:00:23]} Qh6 {[%emt 0:00:56]} 32. g5 {[%emt 0:00:27]} Qh5 {[%emt 0:00:17]} 33. gxf6 {[%emt 0:00:14]} Rxf6 {[%emt 0:00:19]} 34. Kg2 {[%emt 0:00:57]} Re8 {[%emt 0:00:28]} 35. Qf1 {[%emt 0:01:15]} Nf4+ {[%emt 0:01:30]} 36. Kf2 {[%emt 0:02:51]} Nd3+ {[%emt 0:02:05]} 37. Ke2 {[%emt 0:00:16]} Nxb2 {[%emt 0:00:49]} 38. Nxb2 {[%emt 0:00:29]} Qf5 {[%emt 0:01:03]} 39. Nd2 {[%emt 0:00:52]} Qc2 {[%emt 0:07:23]} 40. Qc1 {[%emt 0:00:28]} Qf5 {[%emt 0:07:43]} 41. Nd1 {[%emt 0:00:29]} Rg6 {[%emt 0:01:29]} 42. Rf1 {[%emt 0:00:32]} Rg2+ {[%emt 0:00:39]} 43. Rf2 {[%emt 0:00:29]} Qxh3 {[%emt 0:01:08]} 44. Rxg2 {[%emt 0:00:25]} Qxg2+ {[%emt 0:00:10]} 45. Nf2 {[%emt 0:00:33]} Bf4 {[%emt 0:00:35]} 46. Nf1 {[%emt 0:00:27]} h3 {[%emt 0:01:25]} 47. Qe1 {[%emt 0:00:37]} h2 {[%emt 0:00:21]} 48. Kd3 {[%emt 0:00:31]} h1=Q {[%emt 0:00:56]} 0-1

[Event "LJ Slovak Open 2022"]
[Site "Liptovsky Jan"]
[Date "2022.06.25"]
[Round "5.20"]
[White "Rucek, Peter"]
[Black "Ciglian, Michal"]
[Result "1-0"]
[ECO "D15"]
[WhiteElo "1899"]
[BlackElo "1704"]
[Annotator "NA RC"]
[PlyCount "79"]
[EventDate "2022.06.23"]
[EventType "swiss"]
[EventCountry "SVK"]
[SourceTitle "playchess.com"]
[Source "ChessBase"]
[SourceQuality "1"]
[TimeControl "3600+30"]

1. d4 {[%emt 0:00:05]} c6 {[%emt 0:00:05]} 2. c4 {[%emt 0:00:04]} d5 {[%emt 0:00:10]} 3. Nc3 {[%emt 0:00:05]} Nf6 {[%emt 0:00:07]} 4. Nf3 {[%emt 0:00:09]} a6 {[%emt 0:00:52]} 5. e3 {[%emt 0:03:18]} b5 {[%emt 0:01:31]} 6. b3 {[%emt 0:00:19]} Bg4 {[%emt 0:00:26]} 7. Be2 {[%emt 0:01:23]} Nbd7 {[%emt 0:00:49]} 8. O-O {[%emt 0:00:08]} e6 {[%emt 0:00:16]} 9. Qc2 {[%emt 0:01:27]} Bb4 {[%emt 0:02:09]} 10. Bd2 {[%emt 0:04:07]} O-O {[%emt 0:01:47]} 11. Rfe1 {[%emt 0:06:21]} Re8 {[%emt 0:01:45]} 12. a3 {[%emt 0:01:30]} Ba5 {[%emt 0:00:57]} 13. a4 {[%emt 0:01:15]} Bf5 {[%emt 0:03:11]} 14. Bd3 {[%emt 0:02:40]} Bxd3 {[%emt 0:01:00]} 15. Qxd3 {[%emt 0:00:02]} dxc4 {[%emt 0:00:30]} 16. bxc4 {[%emt 0:00:20]} Nc5 {[%emt 0:00:40]} 17. Qc2 {[%emt 0:03:27]} Bxc3 {[%emt 0:00:17]} 18. Bxc3 {[%emt 0:01:11]} Nxa4 {[%emt 0:00:08]} 19. Bd2 {[%emt 0:06:39]} Nb6 {[%emt 0:01:58]} 20. Ba5 {[%emt 0:00:57]} Qb8 {[%emt 0:00:21]} 21. Ne5 {[%emt 0:01:13]} Rc8 {[%emt 0:00:41]} 22. Reb1 {[%emt 0:03:40]} Nbd7 {[%emt 0:02:34]} 23. Nd3 {[%emt 0:03:05]} Nb6 {[%emt 0:00:57]} 24. Nc5 {[%emt 0:01:40]} Nfd7 {[%emt 0:01:37]} 25. Bxb6 {[%emt 0:01:31]} Nxb6 {[%emt 0:00:11]} 26. Nxa6 {[%emt 0:03:48]} Qa7 {[%emt 0:00:29]} 27. c5 {[%emt 0:02:19]} Na4 {[%emt 0:01:18]} 28. Nb4 {[%emt 0:01:50]} Qc7 {[%emt 0:01:41]} 29. Nd3 {[%emt 0:00:44]} Qa5 {[%emt 0:01:20]} 30. Ra3 {[%emt 0:02:12]} Qd8 {[%emt 0:01:13]} 31. f4 {[%emt 0:00:47]} Qd5 {[%emt 0:01:00]} 32. Nf2 {[%emt 0:01:50]} g6 {[%emt 0:02:14]} 33. Ne4 {[%emt 0:02:56]} Kg7 {[%emt 0:01:01]} 34. Nd6 {[%emt 0:00:12]} Rh8 {[%emt 0:01:40]} 35. g4 {[%emt 0:02:51]} f5 {[%emt 0:05:49]} 36. h3 {[%emt 0:02:06]} fxg4 {[%emt 0:01:47]} 37. hxg4 {[%emt 0:00:23]} h5 {[%emt 0:00:36]} 38. g5 {[%emt 0:00:20]} h4 {[%emt 0:00:23]} 39. Qf2 {[%emt 0:00:33]} h3 {[%emt 0:00:23]} 40. e4 {[%emt 0:00:28]} 1-0

[Event "LJ Slovak Open 2022"]
[Site "Liptovsky Jan"]
[Date "2022.06.25"]
[Round "5.21"]
[White "Smusz, Kamil"]
[Black "Petrik, Matus"]
[Result "1-0"]
[ECO "D00"]
[WhiteElo "1881"]
[BlackElo "1684"]
[Annotator "NA RC"]
[PlyCount "29"]
[EventDate "2022.06.23"]
[EventType "swiss"]
[EventCountry "SVK"]
[SourceTitle "playchess.com"]
[Source "ChessBase"]
[SourceQuality "1"]
[TimeControl "3600+30"]

1. d4 {[%emt 0:00:32]} d5 {[%emt 0:00:04]} 2. Bf4 {[%emt 0:00:05]} Nf6 {[%emt 0:00:19]} 3. e3 {[%emt 0:00:01]} g6 {[%emt 0:00:14]} 4. Nc3 {[%emt 0:00:43]} a6 {[%emt 0:00:38]} 5. h4 {[%emt 0:00:30]} Bg7 {[%emt 0:00:37]} 6. Be2 {[%emt 0:01:34]} Nbd7 {[%emt 0:02:20]} 7. Nf3 {[%emt 0:08:28]} c5 {[%emt 0:01:53]} 8. Ne5 {[%emt 0:03:59]} e6 {[%emt 0:10:56]} 9. Qd2 {[%emt 0:15:09]} Qa5 {[%emt 0:08:37]} 10. a3 {[%emt 0:13:04]} cxd4 {[%emt 0:00:17]} 11. exd4 {[%emt 0:00:21]} Ng8 {[%emt 0:03:08]} 12. Qe3 {[%emt 0:05:47]} Ne7 {[%emt 0:01:20]} 13. g4 {[%emt 0:04:00]} Qb6 {[%emt 0:00:05]} 14. O-O-O {[%emt 0:00:52]} Nc6 {[%emt 0:00:14]} 15. Nxd5 {[%emt 0:02:05]} 1-0

[Event "LJ Slovak Open 2022"]
[Site "Liptovsky Jan"]
[Date "2022.06.25"]
[Round "5.22"]
[White "Szaszak, Robert"]
[Black "Mydliar, Jan"]
[Result "1-0"]
[ECO "C50"]
[WhiteElo "1717"]
[BlackElo "1885"]
[Annotator "NA RC"]
[PlyCount "73"]
[EventDate "2022.06.23"]
[EventType "swiss"]
[EventCountry "SVK"]
[SourceTitle "playchess.com"]
[Source "ChessBase"]
[SourceQuality "1"]
[TimeControl "3600+30"]

1. e4 {[%emt 0:00:07]} e5 {[%emt 0:00:08]} 2. Nf3 {[%emt 0:00:06]} Nc6 {[%emt 0:00:07]} 3. Bc4 {[%emt 0:00:07]} Bc5 {[%emt 0:00:23]} 4. d3 {[%emt 0:00:18]} Nf6 {[%emt 0:00:24]} 5. Nc3 {[%emt 0:00:10]} d6 {[%emt 0:01:14]} 6. h3 {[%emt 0:00:13]} h6 {[%emt 0:02:15]} 7. Bd2 {[%emt 0:00:14]} a6 {[%emt 0:01:54]} 8. a3 {[%emt 0:00:17]} Ba7 {[%emt 0:03:26]} 9. Ne2 {[%emt 0:00:52]} Ne7 {[%emt 0:03:44]} 10. Ng3 {[%emt 0:00:54]} c6 {[%emt 0:01:00]} 11. Qc1 {[%emt 0:00:12]} Qc7 {[%emt 0:03:23]} 12. Be3 {[%emt 0:01:48]} Bxe3 {[%emt 0:00:48]} 13. fxe3 {[%emt 0:00:40]} d5 {[%emt 0:04:56]} 14. Bb3 {[%emt 0:00:35]} Be6 {[%emt 0:02:30]} 15. Nd2 {[%emt 0:01:14]} O-O-O {[%emt 0:02:31]} 16. O-O {[%emt 0:00:52]} h5 {[%emt 0:04:10]} 17. exd5 {[%emt 0:01:07]} Nexd5 {[%emt 0:01:45]} 18. e4 {[%emt 0:00:22]} Nf4 {[%emt 0:00:30]} 19. Bxe6+ {[%emt 0:00:30]} Nxe6 {[%emt 0:00:18]} 20. Ne2 {[%emt 0:01:57]} Nh7 {[%emt 0:05:50]} 21. b4 {[%emt 0:01:12]} g5 {[%emt 0:02:35]} 22. Nc4 {[%emt 0:01:07]} Rhg8 {[%emt 0:04:43]} 23. Rf5 {[%emt 0:01:11]} f6 {[%emt 0:00:32]} 24. Qe3 {[%emt 0:01:37]} Kb8 {[%emt 0:01:59]} 25. a4 {[%emt 0:02:27]} h4 {[%emt 0:00:48]} 26. b5 {[%emt 0:00:37]} cxb5 {[%emt 0:03:21]} 27. axb5 {[%emt 0:00:23]} Nc5 {[%emt 0:04:28]} 28. bxa6 {[%emt 0:00:31]} Nxa6 {[%emt 0:00:29]} 29. Nc3 {[%emt 0:00:39]} g4 {[%emt 0:01:28]} 30. hxg4 {[%emt 0:00:57]} Rxg4 {[%emt 0:00:21]} 31. Nd5 {[%emt 0:01:49]} Qc6 {[%emt 0:03:25]} 32. Rb1 {[%emt 0:02:33]} Rd7 {[%emt 0:03:44]} 33. Rb6 {[%emt 0:01:14]} Qa4 {[%emt 0:00:13]} 34. Nxf6 {[%emt 0:00:39]} Nxf6 {[%emt 0:00:20]} 35. Rfxf6 {[%emt 0:00:09]} Qxc2 {[%emt 0:00:58]} 36. Rf8+ {[%emt 0:00:14]} Kc7 {[%emt 0:01:05]} 37. Rxb7+ {[%emt 0:00:17]} 1-0